bitfinex-derivatives/quotes_BTCF0:USTF0_20250630
["timestamp","ask_amount","ask_price","bid_price","bid_amount"]
[1751283334441,1.38427074,107990.0,107980.0,1.45678949]
[1751283335745,1.38427074,107990.0,107980.0,1.40126425]
[1751283336947,1.38427074,107990.0,107980.0,1.45679129]
[1751283340346,1.19901974,107990.0,107980.0,1.45679129]
[1751283340551,1.38427074,107990.0,107980.0,1.45679129]
[1751283342753,1.38427074,107990.0,107980.0,1.40126425]
[1751283344452,1.38427074,107990.0,107980.0,1.62126425]
[1751283345451,1.38427074,107990.0,107980.0,1.69537084]
[1751283347255,1.38427074,107990.0,107980.0,1.62126425]
[1751283347753,1.38427074,107990.0,107980.0,1.69537084]
[1751283349254,1.38427074,107990.0,107980.0,1.67683913]
[1751283350456,1.38427074,107990.0,107980.0,1.45683913]
[1751283350750,1.38427074,107990.0,107980.0,1.67683913]
[1751283352054,1.38427074,107990.0,107980.0,1.49158813]
[1751283352254,1.38427074,107990.0,107980.0,1.67683913]
[1751283355156,1.38427074,107990.0,107980.0,1.62126425]
[1751283363967,1.19901974,107990.0,107980.0,1.62126425]
[1751283364262,1.38427074,107990.0,107980.0,1.80651525]
[1751283364563,1.19901974,107990.0,107980.0,1.80651525]
[1751283364860,1.38427074,107990.0,107980.0,1.80651525]
[1751283365065,1.19901974,107990.0,107980.0,1.80651525]
[1751283365265,1.38427074,107990.0,107980.0,1.80651525]
[1751283366559,1.38427074,107990.0,107980.0,1.43601325]
[1751283366862,1.38427074,107990.0,107980.0,1.88062184]
[1751283367063,0.504,107990.0,107980.0,2.22289313]
[1751283367262,0.504,107990.0,107980.0,2.19921525]
[1751283367461,0.504,107990.0,107980.0,2.25478476]
[1751283367860,0.004,107990.0,107980.0,2.55078476]
[1751283368061,0.004,107990.0,107980.0,2.56932184]
[1751283368965,0.004,107990.0,107980.0,2.49521525]
[1751283369166,0.004,107990.0,107980.0,2.56932184]
[1751283369464,0.001,107990.0,107980.0,2.56932184]
[1751283370462,0.001,107990.0,107980.0,2.49521525]
[1751283371265,0.001,107990.0,107980.0,2.56924066]
[1751283371468,0.001,107990.0,107980.0,2.49521525]
[1751283372467,0.001,107990.0,107980.0,2.56922653]
[1751283372656,0.001,107990.0,107980.0,2.49521525]
[1751283372860,0.001,107990.0,107980.0,2.58736422]
[1751283373468,0.001,107990.0,107980.0,2.49521525]
[1751283374070,0.001,107990.0,107980.0,2.58736422]
[1751283374472,0.001,107990.0,107980.0,2.49521525]
[1751283375676,0.001,107990.0,107980.0,2.56919773]
[1751283376861,0.001,107990.0,107980.0,2.49521525]
[1751283377067,0.001,107990.0,107980.0,2.58736422]
[1751283378474,0.005,108000.0,107990.0,0.1851605]
[1751283378673,0.1901433,108000.0,107990.0,1.30372522]
[1751283379064,0.005,108000.0,107990.0,1.30372522]
[1751283379269,0.1901433,108000.0,107990.0,1.11847422]
[1751283379674,0.1901433,108000.0,107990.0,1.30372522]
[1751283380177,0.1921433,108000.0,107990.0,1.30372522]
[1751283380378,0.007,108000.0,107990.0,1.30372522]
[1751283380772,0.1921433,108000.0,107990.0,1.30372522]
[1751283381368,0.007,108000.0,107990.0,1.30372522]
[1751283381674,0.007,108000.0,107990.0,1.31291119]
[1751283383076,0.007,108000.0,107990.0,0.94240919]
[1751283383280,0.007,108000.0,107990.0,1.31291119]
[1751283384472,0.1921433,108000.0,107990.0,0.94240919]
[1751283384678,0.1921433,108000.0,107990.0,1.31291119]
[1751283385079,0.007,108000.0,107990.0,1.31291119]
[1751283385374,0.005,108000.0,107990.0,1.31591119]
[1751283385975,0.1901433,108000.0,107990.0,1.31591119]
[1751283386276,0.005,108000.0,107990.0,1.31591119]
[1751283386979,0.1901433,108000.0,107990.0,1.31591119]
[1751283389378,0.005,108000.0,107990.0,1.31591119]
[1751283390277,0.1901433,108000.0,107990.0,1.31591119]
[1751283393174,0.1901433,108000.0,107990.0,1.24194847]
[1751283394979,0.1901433,108000.0,107990.0,1.31588176]
[1751283396482,0.2224433,108000.0,107990.0,1.31588176]
[1751283397884,0.30720224,108000.0,107990.0,1.06973076]
[1751283398285,0.33800224,108000.0,107990.0,1.06973076]
[1751283399284,0.33800224,108000.0,107990.0,1.25498176]
[1751283399786,0.33800224,108000.0,107990.0,1.06973076]
[1751283406185,0.33800224,108000.0,107990.0,0.99579747]
[1751283406380,0.33800224,108000.0,107990.0,1.02679747]
[1751283406779,0.33800224,108000.0,107990.0,1.11894644]
[1751283408577,0.33800224,108000.0,107990.0,1.30419744]
[1751283414290,0.33800224,108000.0,107990.0,1.37828003]
[1751283414486,0.33800224,108000.0,107990.0,1.28613106]
[1751283421293,0.33800224,108000.0,107990.0,1.21204847]
[1751283421791,0.33800224,108000.0,107990.0,1.30419744]
[1751283425595,0.30720224,108000.0,107990.0,1.30419744]
[1751283428794,0.30720224,108000.0,107990.0,1.3542804]
[1751283428997,0.30720224,108000.0,107990.0,1.33749744]
[1751283429195,0.30720224,108000.0,107990.0,1.3542804]
[1751283429903,0.12205894,108000.0,107990.0,1.3542804]
[1751283432303,0.12205894,108000.0,107990.0,1.35453822]
[1751283432498,0.005,108000.0,107990.0,1.35392348]
[1751283432801,0.2976131,108010.0,108000.0,0.1851433]
[1751283433001,0.38237204,108010.0,108000.0,1.6057885]
[1751283433402,0.88237204,108010.0,108000.0,1.6057885]
[1751283433603,0.88237204,108010.0,108000.0,1.8094335]
[1751283435607,0.83609034,108010.0,108000.0,1.8094335]
[1751283435800,0.61785894,108010.0,108000.0,1.8094335]
[1751283436010,0.80298514,108010.0,108000.0,1.8094335]
[1751283436307,0.61785894,108010.0,108000.0,1.8094335]
[1751283436606,0.11785894,108010.0,108000.0,1.8396335]
[1751283436806,0.30298514,108010.0,108000.0,1.8396335]
[1751283442618,0.0331,108010.0,108000.0,1.8396335]
[1751283442820,0.1851262,108010.0,108000.0,2.3392825]
[1751283443022,0.1851262,108010.0,108000.0,2.3855667]
[1751283443520,0.1851262,108010.0,108000.0,2.3114835]
[1751283443718,0.40314234,108020.0,108010.0,0.1851262]
[1751283443920,0.48790128,108020.0,108010.0,0.69454571]
[1751283444622,0.94162028,108020.0,108010.0,0.69454571]
[1751283444914,0.94162028,108020.0,108010.0,1.0139772]
[1751283446216,0.94362028,108020.0,108010.0,1.0139772]
[1751283446424,0.44362028,108020.0,108010.0,1.0139772]
[1751283447124,0.44362028,108020.0,108010.0,0.8287262]
[1751283447323,0.47572028,108020.0,108010.0,0.9812772]
[1751283447525,0.47572028,108020.0,108010.0,0.67601728]
[1751283448519,1.02177128,108020.0,108010.0,0.42591728]
[1751283448720,1.20702228,108020.0,108010.0,0.91287364]
[1751283448921,1.02177128,108020.0,108010.0,0.93138628]
[1751283449117,1.70702228,108020.0,108010.0,0.93138628]
[1751283449317,1.52177128,108020.0,108010.0,0.93138628]
[1751283449521,1.52177128,108020.0,108010.0,1.11663728]
[1751283450727,1.33652028,108020.0,108010.0,1.11663728]
[1751283450925,1.33652028,108020.0,108010.0,1.33663728]
[1751283450926,1.52177128,108020.0,108010.0,1.33663728]
[1751283451120,1.52177128,108020.0,108010.0,1.11663728]
[1751283456831,1.52177128,108020.0,108010.0,1.15366749]
[1751283461533,1.52177128,108020.0,108010.0,1.37366749]
[1751283461734,1.33652028,108020.0,108010.0,1.37366749]
[1751283461926,1.52177128,108020.0,108010.0,1.37366749]
[1751283463634,1.52177128,108020.0,108010.0,1.15358749]
[1751283464035,1.50639494,108020.0,108010.0,1.15358749]
[1751283464437,1.52164083,108020.0,108010.0,1.15358749]
[1751283464939,1.52164083,108020.0,108010.0,1.37358749]
[1751283466036,1.52164083,108020.0,108010.0,1.18833649]
[1751283466238,1.52164083,108020.0,108010.0,1.37358749]
[1751283466831,1.52164083,108020.0,108010.0,1.33655728]
[1751283467234,1.50639494,108020.0,108010.0,1.11655728]
[1751283467438,1.52143219,108020.0,108010.0,1.11655728]
[1751283467633,1.50639494,108020.0,108010.0,1.11655728]
[1751283467841,1.52143219,108020.0,108010.0,1.14705728]
[1751283469843,1.50639494,108020.0,108010.0,1.14705728]
[1751283470634,1.52167522,108020.0,108010.0,1.14705728]
[1751283470835,1.50639494,108020.0,108010.0,1.14705728]
[1751283471036,1.52178176,108020.0,108010.0,1.14705728]
[1751283471244,1.50639494,108020.0,108010.0,1.14705728]
[1751283471542,1.52178176,108020.0,108010.0,1.14705728]
[1751283473944,1.33653076,108020.0,108010.0,1.14705728]
[1751283474350,1.52178176,108020.0,108010.0,1.14705728]
[1751283476152,1.52178176,108020.0,108010.0,1.16558571]
[1751283477050,1.52178176,108020.0,108010.0,1.1470575]
[1751283477549,1.52178176,108020.0,108010.0,0.9619313]
[1751283477850,1.70503276,108020.0,108010.0,0.9314313]
[1751283478157,1.70503276,108020.0,108010.0,1.1165575]
[1751283478349,1.70503276,108020.0,108010.0,0.9314313]
[1751283478649,1.70503276,108020.0,108010.0,1.1165574]
[1751283482255,1.51978176,108020.0,108010.0,1.1467574]
[1751283484057,1.33453076,108020.0,108010.0,1.1467574]
[1751283484257,1.48768176,108020.0,108010.0,1.1467574]
[1751283484455,1.45598176,108020.0,108010.0,1.1785574]
[1751283484857,1.44059494,108020.0,108010.0,1.1785574]
[1751283485058,1.45599713,108020.0,108010.0,1.1785574]
[1751283485259,1.45599713,108020.0,108010.0,1.3985574]
[1751283485853,0.90994613,108020.0,108010.0,1.3985574]
[1751283486061,1.45599713,108020.0,108010.0,1.3985574]
[1751283486256,1.27074613,108020.0,108010.0,1.39855623]
[1751283486758,1.44059494,108020.0,108010.0,1.39855623]
[1751283486959,1.44059494,108020.0,108010.0,1.41708561]
[1751283487160,1.44059494,108020.0,108010.0,1.19708561]
[1751283488161,1.45568881,108020.0,108010.0,1.19708561]
[1751283488364,1.44059494,108020.0,108010.0,1.17855554]
[1751283488558,1.44059494,108020.0,108010.0,1.39855554]
[1751283488960,1.45581336,108020.0,108010.0,1.3430171]
[1751283489159,1.09501336,108020.0,108010.0,1.3430171]
[1751283489552,1.45581336,108020.0,108010.0,1.3430171]
[1751283490460,1.44059494,108020.0,108010.0,1.3430171]
[1751283490661,1.45612927,108020.0,108010.0,1.3430171]
[1751283493264,1.45596167,108020.0,108010.0,1.3430171]
[1751283496563,1.45596167,108020.0,108010.0,1.1230171]
[1751283496767,1.45596167,108020.0,108010.0,1.19708561]
[1751283496968,1.45596167,108020.0,108010.0,1.17855747]
[1751283498369,1.45596167,108020.0,108010.0,1.39855747]
[1751283498571,1.09516167,108020.0,108010.0,1.39855747]
[1751283499269,1.45596167,108020.0,108010.0,1.39855747]
[1751283499469,1.09516167,108020.0,108010.0,1.39855747]
[1751283499658,1.27071067,108020.0,108010.0,1.39855747]
[1751283499862,1.45596167,108020.0,108010.0,1.39855747]
[1751283500059,0.90991067,108020.0,108010.0,1.39855747]
[1751283500270,0.87881067,108020.0,108010.0,1.42865747]
[1751283502865,0.87881067,108020.0,108010.0,1.20865747]
[1751283503070,1.42486167,108020.0,108010.0,1.20865747]
[1751283503270,1.45616167,108020.0,108010.0,1.20865747]
[1751283503973,1.45616167,108020.0,108010.0,1.17855757]
[1751283504369,1.37140273,108020.0,108010.0,1.17855757]
[1751283504568,1.45616167,108020.0,108010.0,1.17855757]
[1751283504873,1.45616167,108020.0,108010.0,1.39835757]
[1751283505573,1.27091067,108020.0,108010.0,1.39835757]
[1751283505768,1.45616167,108020.0,108010.0,1.39835757]
[1751283506073,1.45616167,108020.0,108010.0,1.17835757]
[1751283506773,1.09536167,108020.0,108010.0,1.17835757]
[1751283506973,1.09536167,108020.0,108010.0,1.19688571]
[1751283508578,1.45616167,108020.0,108010.0,1.19688571]
[1751283508771,1.48776167,108020.0,108010.0,1.19688571]
[1751283509076,1.48776167,108020.0,108010.0,1.01163471]
[1751283509277,1.48776167,108020.0,108010.0,1.19688571]
[1751283509466,1.51946167,108020.0,108010.0,1.19688571]
[1751283509777,1.51946167,108020.0,108010.0,1.16508571]
[1751283512178,1.51946167,108020.0,108010.0,0.905891]
[1751283512377,1.51946167,108020.0,108010.0,1.0910172]
[1751283513077,1.51946167,108020.0,108010.0,1.1465721]
[1751283513578,1.51962497,108020.0,108010.0,1.1465721]
[1751283517078,1.50409494,108020.0,108010.0,1.1465721]
[1751283518680,1.51955562,108020.0,108010.0,1.1465721]
[1751283519975,1.30260462,108020.0,108010.0,1.1465721]
[1751283520184,1.48785562,108020.0,108010.0,1.1465721]
[1751283520374,1.48785562,108020.0,108010.0,1.0910172]
[1751283521075,1.48785562,108020.0,108010.0,0.97983471]
[1751283521376,1.48785562,108020.0,108010.0,1.16508571]
[1751283525880,1.48785562,108020.0,108010.0,0.97983471]
[1751283526081,1.48785562,108020.0,108010.0,1.16508571]
[1751283526683,1.48785562,108020.0,108010.0,1.0910172]
[1751283526985,1.48785562,108020.0,108010.0,1.14656579]
[1751283527574,1.48785562,108020.0,108010.0,1.0910172]
[1751283529090,1.12705562,108020.0,108010.0,1.0910172]
[1751283529582,1.48785562,108020.0,108010.0,1.0910172]
[1751283529984,1.12705562,108020.0,108010.0,1.0910172]
[1751283530188,1.48785562,108020.0,108010.0,1.0910172]
[1751283532386,1.48785562,108020.0,108010.0,1.16508571]
[1751283534384,1.40309668,108020.0,108010.0,1.16508571]
[1751283534589,1.48785562,108020.0,108010.0,1.16508571]
[1751283534988,1.48785562,108020.0,108010.0,1.16492571]
[1751283535189,1.48785562,108020.0,108010.0,0.97967471]
[1751283535489,1.48785562,108020.0,108010.0,1.16492571]
[1751283535678,1.48785562,108020.0,108010.0,0.97979951]
[1751283535882,1.48785562,108020.0,108010.0,1.16492561]
[1751283539791,1.48785562,108020.0,108010.0,0.97979951]
[1751283539993,1.48785562,108020.0,108010.0,1.16492571]
[1751283540687,1.48785562,108020.0,108010.0,0.97979951]
[1751283540883,1.67310662,108020.0,108010.0,0.07406851]
[1751283541091,0.323979,108010.0,108000.0,0.8754233]
[1751283541290,1.0116153,108010.0,108000.0,1.0954233]
[1751283541490,1.0116153,108010.0,108000.0,0.91028]
[1751283542292,0.1851433,108000.0,107990.0,0.68106777]
[1751283542491,0.4013943,108000.0,107990.0,1.46421674]
[1751283542793,0.4013943,108000.0,107990.0,0.13]
[1751283542794,1.04719491,108000.0,107990.0,0.13]
[1751283543098,0.1851604,107990.0,107980.0,0.63609055]
[1751283543290,0.9806624,107990.0,107980.0,0.07509055]
[1751283543597,0.1851776,107980.0,107970.0,0.8310184]
[1751283543789,1.0116796,107980.0,107970.0,1.05762367]
[1751283543984,1.0116796,107980.0,107970.0,0.78028]
[1751283544187,1.0116796,107980.0,107970.0,0.651]
[1751283544385,1.0116796,107980.0,107970.0,0.92834367]
[1751283544587,0.8264286,107980.0,107970.0,0.92834367]
[1751283544789,0.8264286,107980.0,107970.0,0.36734367]
[1751283544988,0.8264286,107980.0,107970.0,0.92834367]
[1751283545589,0.8264286,107980.0,107970.0,0.95984367]
[1751283545985,0.8264286,107980.0,107970.0,0.8676947]
[1751283546197,1.0116796,107980.0,107970.0,0.8716947]
[1751283546397,1.5116796,107980.0,107970.0,0.8716947]
[1751283547192,1.3264286,107980.0,107970.0,0.8716947]
[1751283548298,1.3264286,107980.0,107970.0,0.90864419]
[1751283549694,1.3264286,107980.0,107970.0,1.09389519]
[1751283549899,1.3264286,107980.0,107970.0,0.90864419]
[1751283550198,1.5116796,107980.0,107970.0,1.09389519]
[1751283550392,1.3264286,107980.0,107970.0,1.09389519]
[1751283551601,1.2949286,107980.0,107970.0,1.12409519]
[1751283552003,1.31029545,107980.0,107970.0,1.12409519]
[1751283556505,1.49554645,107980.0,107970.0,1.12409519]
[1751283556998,1.31029545,107980.0,107970.0,1.12409519]
[1751283558607,1.31029545,107980.0,107970.0,0.93884419]
[1751283558797,1.31029545,107980.0,107970.0,1.12409519]
[1751283561003,1.31029545,107980.0,107970.0,1.17944198]
[1751283561506,1.31029545,107980.0,107970.0,1.08944198]
[1751283563917,1.31029545,107980.0,107970.0,1.17944198]
[1751283564511,1.31029545,107980.0,107970.0,1.08944198]
[1751283565213,1.31029545,107980.0,107970.0,1.05249249]
[1751283566009,1.31029545,107980.0,107970.0,1.14249249]
[1751283566611,1.31029545,107980.0,107970.0,1.05249249]
[1751283569713,1.49554645,107980.0,107970.0,0.30624149]
[1751283570307,1.49554645,107980.0,107970.0,0.50999952]
[1751283571012,1.49554645,107980.0,107970.0,0.4361457]
[1751283571209,1.49554645,107980.0,107970.0,0.50999952]
[1751283571407,1.49554645,107980.0,107970.0,0.29454852]
[1751283571615,1.52724645,107980.0,107970.0,0.29454852]
[1751283571809,1.52724645,107980.0,107970.0,0.10935382]
[1751283572815,1.61200539,107980.0,107970.0,0.10935382]
[1751283573618,1.61200539,107980.0,107970.0,0.07785382]
[1751283574312,1.24150339,107980.0,107970.0,0.07785382]
[1751283574610,1.61200539,107980.0,107970.0,0.07785382]
[1751283576320,1.61200539,107980.0,107970.0,0.004]
[1751283576506,1.61200539,107980.0,107970.0,0.07811296]
[1751283585426,1.61200539,107980.0,107970.0,0.004]
[1751283587026,1.61200539,107980.0,107970.0,0.0595418]
[1751283589528,1.61200539,107980.0,107970.0,0.09656534]
[1751283593831,1.61200539,107980.0,107970.0,0.04102354]
[1751283595032,1.61200539,107980.0,107970.0,0.09656534]
[1751283597036,1.61200539,107980.0,107970.0,0.0595418]
[1751283598736,1.61200539,107980.0,107970.0,0.09656333]
[1751283606335,1.61200539,107980.0,107970.0,0.0595418]
[1751283608136,1.24150339,107980.0,107970.0,0.0595418]
[1751283608343,1.61200539,107980.0,107970.0,0.0595418]
[1751283610143,1.61200539,107980.0,107970.0,0.0896418]
[1751283611146,1.61200539,107980.0,107970.0,0.0896418]
[1751283614247,1.25120539,107980.0,107970.0,0.0896418]
[1751283614546,1.97280539,107980.0,107970.0,0.0896418]
[1751283615146,1.97280539,107980.0,107970.0,0.1266922]
[1751283620743,1.97280539,107980.0,107970.0,0.0896418]
[1751283633960,1.60230339,107980.0,107970.0,0.0896418]
[1751283634160,1.97280539,107980.0,107970.0,0.0896418]
[1751283636854,1.97280539,107980.0,107970.0,0.0595418]
[1751283639465,2.07280539,107980.0,107970.0,0.04105629]
[1751283640659,1.97280539,107980.0,107970.0,0.04105629]
[1751283643368,1.97280539,107980.0,107970.0,0.09659809]
[1751283643778,2.16566339,107980.0,107970.0,0.09659809]
[1751283643978,2.53616539,107980.0,107970.0,0.09659809]
[1751283644680,2.53616539,107980.0,107970.0,0.12719809]
[1751283645280,2.16566339,107980.0,107970.0,0.12719809]
[1751283645579,2.53616539,107980.0,107970.0,0.12719809]
[1751283647180,2.53616539,107980.0,107970.0,0.0901418]
[1751283647972,1.97280539,107980.0,107970.0,0.0901418]
[1751283648168,2.53596539,107980.0,107970.0,0.0901418]
[1751283648981,1.97280539,107980.0,107970.0,0.0901418]
[1751283649184,2.53588539,107980.0,107970.0,0.0901418]
[1751283651081,1.97280539,107980.0,107970.0,0.0901418]
[1751283651283,2.53588539,107980.0,107970.0,0.0901418]
[1751283653086,1.97280539,107980.0,107970.0,0.0901418]
[1751283653289,2.53564539,107980.0,107970.0,0.0901418]
[1751283654384,2.45088645,107980.0,107970.0,0.0901418]
[1751283654688,2.53564539,107980.0,107970.0,0.0901418]
[1751283655189,1.97280539,107980.0,107970.0,0.0901418]
[1751283655391,2.53552539,107980.0,107970.0,0.0901418]
[1751283655692,1.97280539,107980.0,107970.0,0.0901418]
[1751283656885,2.53552539,107980.0,107970.0,0.0901418]
[1751283672099,2.16502339,107980.0,107970.0,0.0901418]
[1751283672394,2.53552539,107980.0,107970.0,0.0901418]
[1751283672599,2.53569419,107980.0,107970.0,0.0901418]
[1751283673801,2.16519219,107980.0,107970.0,0.0901418]
[1751283674001,2.53569419,107980.0,107970.0,0.0901418]
[1751283677999,1.97297419,107980.0,107970.0,0.0901418]
[1751283678307,2.53501419,107980.0,107970.0,0.0901418]
[1751283679102,2.17421419,107980.0,107970.0,0.0901418]
[1751283679294,2.53501419,107980.0,107970.0,0.0901418]
[1751283679605,2.16451219,107980.0,107970.0,0.0901418]
[1751283679906,2.53501419,107980.0,107970.0,0.0901418]
[1751283683607,1.97297419,107980.0,107970.0,0.0901418]
[1751283683806,2.53493419,107980.0,107970.0,0.0901418]
[1751283685610,1.97297419,107980.0,107970.0,0.0901418]
[1751283688108,1.61217419,107980.0,107970.0,0.0901418]
[1751283691311,1.61217419,107980.0,107970.0,0.0595418]
[1751283693031,1.24167219,107980.0,107970.0,0.0595418]
[1751283693226,1.61217419,107980.0,107970.0,0.0595418]
[1751283696829,1.24167219,107980.0,107970.0,0.0595418]
[1751283697034,1.20997219,107980.0,107970.0,0.2447928]
[1751283697236,1.39522319,107980.0,107970.0,0.3085928]
[1751283697626,1.58047419,107980.0,107970.0,0.3085928]
[1751283700136,3.08047419,107980.0,107970.0,0.3085928]
[1751283702738,3.08047419,107980.0,107970.0,0.1233418]
[1751283703342,2.70997219,107980.0,107970.0,0.1233418]
[1751283703637,3.08047419,107980.0,107970.0,0.1233418]
[1751283708242,3.11277419,107980.0,107970.0,0.1233418]
[1751283709938,3.11277419,107980.0,107970.0,0.16039346]
[1751283710438,3.11277419,107980.0,107970.0,0.1233418]
[1751283711945,2.75197419,107980.0,107970.0,0.1233418]
[1751283712148,3.11277419,107980.0,107970.0,0.1233418]
[1751283712947,2.75197419,107980.0,107970.0,0.1233418]
[1751283713138,3.11277419,107980.0,107970.0,0.1233418]
[1751283718142,2.75197419,107980.0,107970.0,0.1233418]
[1751283718343,3.11277419,107980.0,107970.0,0.1233418]
[1751283718549,3.11277419,107980.0,107970.0,0.0926418]
[1751283729762,3.11277419,107980.0,107970.0,0.2778928]
[1751283732755,3.02801525,107980.0,107970.0,0.2778928]
[1751283732956,3.02801525,107980.0,107970.0,0.8397328]
[1751283733160,3.02801525,107980.0,107970.0,0.8708328]
[1751283733558,2.62521325,107980.0,107970.0,1.1460233]
[1751283733863,0.70071325,107980.0,107970.0,1.1460233]
[1751283734162,0.88596425,107980.0,107970.0,1.19509446]
[1751283735465,0.88596425,107980.0,107970.0,1.1765447]
[1751283737061,1.27796425,107980.0,107970.0,1.0904815]
[1751283737265,1.46321525,107980.0,107970.0,1.0904815]
[1751283737463,1.27796425,107980.0,107970.0,1.0904815]
[1751283740666,1.46321525,107980.0,107970.0,0.9136905]
[1751283740867,1.52541525,107980.0,107970.0,0.11121296]
[1751283741066,1.52541525,107980.0,107970.0,0.67297296]
[1751283741770,1.52541525,107980.0,107970.0,0.59886]
[1751283742061,1.52541525,107980.0,107970.0,0.62129313]
[1751283742661,1.52541525,107980.0,107970.0,0.63987296]
[1751283743867,1.52541525,107980.0,107970.0,0.62129203]
[1751283745169,1.52541525,107980.0,107970.0,0.05953203]
[1751283746066,1.61017419,107980.0,107970.0,0.05953203]
[1751283746273,0.092602,107970.0,107960.0,0.07411296]
[1751283746566,1.7566573,107970.0,107960.0,0.02]
[1751283746766,1.84141624,107970.0,107960.0,0.02]
[1751283746966,0.1852077,107960.0,107950.0,0.07503927]
[1751283747162,1.0097097,107960.0,107950.0,0.16503927]
[1751283747364,1.09446864,107960.0,107950.0,0.16503927]
[1751283748169,1.09446864,107960.0,107950.0,0.09792631]
[1751283748369,1.09446864,107960.0,107950.0,0.17203927]
[1751283748677,1.22406864,107960.0,107950.0,0.17203927]
[1751283749064,1.23334433,107960.0,107950.0,0.08203927]
[1751283749264,1.23334433,107960.0,107950.0,0.00792631]
[1751283749669,1.51859533,107960.0,107950.0,0.00792631]
[1751283749968,2.01859533,107960.0,107950.0,0.00792631]
[1751283750169,0.1852248,107950.0,107940.0,0.07411296]
[1751283750359,0.185242,107940.0,107930.0,0.16626193]
[1751283750563,1.15434195,107940.0,107930.0,0.07411296]
[1751283750868,0.1852592,107930.0,107920.0,0.21415694]
[1751283751066,0.4013102,107930.0,107920.0,0.25415694]
[1751283751669,0.4013102,107930.0,107920.0,0.18004398]
[1751283752064,0.9013102,107930.0,107920.0,0.18004398]
[1751283752572,1.0865612,107930.0,107920.0,0.18004398]
[1751283752870,1.4786612,107930.0,107920.0,0.11484398]
[1751283753265,2.0405012,107930.0,107920.0,0.11684398]
[1751283753776,1.91739099,107930.0,107920.0,0.11684398]
[1751283754474,1.91739099,107930.0,107920.0,0.14452923]
[1751283755563,0.1852935,107910.0,107900.0,0.45156627]
[1751283755764,1.50931112,107910.0,107900.0,0.16411296]
[1751283755969,1.74967822,107910.0,107900.0,0.16432023]
[1751283757273,1.93543716,107910.0,107900.0,0.09]
[1751283757671,0.1853106,107900.0,107890.0,0.06532683]
[1751283757976,0.49490239,107900.0,107890.0,0.15532683]
[1751283758276,0.52690239,107900.0,107890.0,0.15532683]
[1751283758769,0.52690239,107900.0,107890.0,0.16928326]
[1751283759165,0.61166133,107900.0,107890.0,0.10488326]
[1751283759372,1.76410133,107900.0,107890.0,0.10488326]
[1751283759571,1.07246133,107900.0,107890.0,0.10488326]
[1751283759772,1.66410133,107900.0,107890.0,0.10488326]
[1751283759966,1.66510133,107900.0,107890.0,0.10488326]
[1751283760372,2.16510133,107900.0,107890.0,0.10488326]
[1751283760679,1.47346133,107900.0,107890.0,0.10488326]
[1751283760978,2.16534133,107900.0,107890.0,0.10488326]
[1751283761176,2.16534133,107900.0,107880.0,0.1364163]
[1751283761177,0.1853622,107870.0,107860.0,0.36172708]
[1751283761380,0.24739179,107870.0,107860.0,0.71575593]
[1751283761582,0.43275399,107870.0,107860.0,0.30861133]
[1751283761878,0.43275399,107870.0,107860.0,0.15149915]
[1751283762179,0.43275399,107870.0,107860.0,0.33687855]
[1751283762775,0.43275399,107870.0,107860.0,0.3227058]
[1751283762975,0.43475399,107870.0,107860.0,0.3437058]
[1751283763179,0.93475399,107870.0,107860.0,0.3437058]
[1751283763380,0.93275399,107870.0,107860.0,0.3227058]
[1751283763583,0.6853622,107870.0,107860.0,0.6835058]
[1751283766481,0.93275399,107870.0,107860.0,0.6835058]
[1751283767384,0.6853622,107870.0,107860.0,0.6835058]
[1751283767684,0.93275399,107870.0,107860.0,0.6835058]
[1751283768986,0.93275399,107870.0,107860.0,0.69799476]
[1751283771778,0.6853622,107870.0,107860.0,0.69799476]
[1751283771980,0.6853622,107870.0,107860.0,0.6835058]
[1751283774888,2.07263293,107870.0,107860.0,0.2609059]
[1751283775389,2.10563293,107870.0,107860.0,0.2609059]
[1751283775584,2.10563293,107870.0,107860.0,0.2921059]
[1751283776188,1.74483293,107870.0,107860.0,0.2921059]
[1751283776390,1.74483293,107870.0,107860.0,0.3227059]
[1751283777092,1.97591293,107870.0,107860.0,0.3227059]
[1751283777492,1.97591293,107870.0,107860.0,0.0755264]
[1751283777694,2.00891293,107870.0,107860.0,0.0755264]
[1751283779395,2.00891293,107870.0,107860.0,0.00092708]
[1751283781494,1.44431293,107870.0,107860.0,0.00092708]
[1751283781693,2.13843293,107870.0,107860.0,0.00092708]
[1751283782292,1.44431293,107870.0,107860.0,0.00092708]
[1751283782484,2.13855293,107870.0,107860.0,0.00092708]
[1751283783088,2.13847293,107870.0,107860.0,0.01531019]
[1751283783992,1.44431293,107870.0,107860.0,0.00092708]
[1751283784291,2.13847293,107870.0,107860.0,0.00092708]
[1751283788900,2.13847293,107870.0,107860.0,0.03770075]
[1751283792300,2.23847293,107870.0,107860.0,0.03770075]
[1751283793401,1.54431293,107870.0,107860.0,0.03770075]
[1751283793607,2.23859293,107870.0,107860.0,0.03770075]
[1751283794307,2.2478514,107870.0,107860.0,0.03770075]
[1751283794907,2.2498514,107870.0,107860.0,0.03770075]
[1751283795405,2.2498514,107870.0,107860.0,0.05215961]
[1751283796297,0.1853795,107860.0,107850.0,0.09208802]
[1751283796502,0.90383273,107860.0,107850.0,0.09208802]
[1751283796696,0.98859167,107860.0,107850.0,0.0370301]
[1751283797407,1.48859167,107860.0,107850.0,0.0370301]
[1751283800411,1.34955867,107860.0,107830.0,0.48356958]
[1751283800617,0.43280569,107840.0,107830.0,0.48356958]
[1751283800910,0.43280569,107840.0,107830.0,0.4743324]
[1751283801114,0.46550569,107840.0,107830.0,0.4743324]
[1751283801616,0.46550569,107840.0,107830.0,0.381617]
[1751283801816,0.46550569,107840.0,107830.0,0.32655908]
[1751283802220,0.46550569,107840.0,107830.0,0.32655988]
[1751283802518,0.96550569,107840.0,107830.0,0.14112878]
[1751283802712,0.99740569,107840.0,107830.0,0.14112878]
[1751283803418,0.99740569,107840.0,107830.0,0.14412878]
[1751283804414,1.69120569,107840.0,107830.0,0.14412878]
[1751283804615,0.7500139,107840.0,107830.0,0.14412878]
[1751283804820,1.69112569,107840.0,107830.0,0.14412878]
[1751283805215,1.69112569,107840.0,107830.0,0.1991867]
[1751283806017,1.65922569,107840.0,107830.0,0.1991867]
[1751283806219,0.96550569,107840.0,107830.0,0.1991867]
[1751283806419,1.65926569,107840.0,107830.0,0.3846178]
[1751283807122,0.96550569,107840.0,107830.0,0.3846178]
[1751283807324,1.65926569,107840.0,107830.0,0.3846178]
[1751283808019,0.93280569,107840.0,107830.0,0.7454178]
[1751283808221,0.6854139,107840.0,107830.0,0.93775167]
[1751283808421,0.6854139,107840.0,107830.0,0.69035988]
[1751283808819,0.93280569,107840.0,107830.0,0.69035988]
[1751283811921,0.6854139,107840.0,107830.0,0.7789193]
[1751283812123,0.6854139,107840.0,107830.0,0.76447284]
[1751283812626,0.1854139,107840.0,107830.0,0.76447284]
[1751283813922,0.43280569,107840.0,107830.0,0.76447284]
[1751283818822,0.1854139,107840.0,107830.0,1.01186463]
[1751283819222,0.1854139,107840.0,107830.0,0.76447284]
[1751283819528,1.17227589,107850.0,107840.0,0.1854142]
[1751283819828,0.60963589,107850.0,107840.0,0.89801078]